bitfinex-derivatives/quotes_ETHF0:USTF0_20240930
["timestamp","ask_amount","ask_price","bid_price","bid_amount"]
[1727701605387,0.3652,2635.7,2635.5,3.2078]
[1727701605576,2.7494,2635.6,2635.5,3.2078]
[1727701606191,2.37,2635.6,2635.4,0.99407745]
[1727701606386,0.37943,2635.4,2635.3,2.15247745]
[1727701607089,2.37,2635.4,2635.3,2.15247745]
[1727701608290,2.37,2635.4,2635.3,1.1584]
[1727701608887,2.37,2635.4,2635.3,1.53784]
[1727701609989,2.37,2635.4,2635.1,0.37946]
[1727701610192,0.75164,2635.3,2635.1,0.37946]
[1727701610396,0.3722,2635.3,2635.1,0.37946]
[1727701610692,2.37,2635.2,2635.1,0.37946]
[1727701610884,2.37,2635.2,2635.0,1.14148]
[1727701611088,2.37,2635.2,2635.0,0.74538]
[1727701611282,2.7503,2635.2,2635.0,0.74538]
[1727701611595,2.37,2635.2,2635.1,0.37947]
[1727701612294,6.1652,2635.2,2634.9,3.2078]
[1727701612489,2.37,2635.2,2634.9,3.5996]
[1727701612689,2.37,2635.2,2635.0,0.37948]
[1727701612990,2.37,2635.2,2635.0,0.37947]
[1727701613191,6.1652,2635.2,2635.0,0.37947]
[1727701613697,3.7952,2635.1,2634.9,0.3918]
[1727701613996,2.37,2635.0,2634.7,1.15631]
[1727701614193,2.37,2634.8,2634.7,0.7768]
[1727701614796,0.3919,2634.9,2634.8,0.37951]
[1727701615792,0.7714,2634.9,2634.8,0.37951]
[1727701616190,0.7714,2634.9,2634.7,1.15631]
[1727701616393,0.3919,2634.9,2634.7,0.7768]
[1727701616593,0.7714,2634.9,2634.7,1.15631]
[1727701616893,0.7714,2634.9,2634.7,1.15632]
[1727701617286,2.74951,2634.8,2634.7,0.7768]
[1727701618291,2.74951,2634.8,2634.7,0.3961]
[1727701618790,2.37,2634.8,2634.5,0.3705]
[1727701618992,0.37954,2634.6,2634.5,0.75005]
[1727701619192,2.74954,2634.6,2634.5,0.3705]
[1727701619597,2.74954,2634.6,2634.5,0.75005]
[1727701619798,2.37,2634.6,2634.5,0.75005]
[1727701620093,2.37,2634.8,2634.6,0.37954]
[1727701620300,2.37,2634.8,2634.5,0.3705]
[1727701620500,2.37,2634.8,2634.7,0.37953]
[1727701622304,2.74951,2634.8,2634.7,0.37953]
[1727701622700,0.37954,2634.6,2634.5,0.75004]
[1727701622908,2.74954,2634.6,2634.5,0.75004]
[1727701623799,2.37,2634.6,2634.5,0.75004]
[1727701630205,2.74954,2634.6,2634.5,0.3705]
[1727701630408,0.37955,2634.5,2634.4,0.4011]
[1727701630713,0.78205,2634.5,2634.4,0.4011]
[1727701630913,0.78205,2634.5,2634.4,0.78067]
[1727701631210,0.78205,2634.5,2634.4,0.4011]
[1727701631413,0.78205,2634.5,2634.4,0.37957]
[1727701631715,0.37957,2634.4,2634.3,1.13467]
[1727701632511,1.4925,2634.5,2634.2,0.3744]
[1727701632708,1.4925,2634.5,2634.0,3.9942]
[1727701632709,1.09,2634.3,2634.0,3.9942]
[1727701632912,1.09,2634.1,2634.0,1.16603]
[1727701633113,1.09,2634.1,2634.0,0.37963]
[1727701633114,1.46961,2634.1,2634.0,0.37963]
[1727701633719,1.09,2634.1,2634.0,0.37963]
[1727701634017,1.09,2634.1,2633.9,0.3663]
[1727701634018,0.3796,2634.2,2634.1,0.3796]
[1727701634214,0.37962,2634.1,2634.0,0.37962]
[1727701634416,1.4566,2634.1,2634.0,0.37962]
[1727701634610,1.83622,2634.1,2634.0,0.37963]
[1727701635320,1.4566,2634.1,2634.0,0.37963]
[1727701635522,2.7366,2634.1,2634.0,0.37963]
[1727701635724,0.37963,2634.0,2633.9,0.74593]
[1727701635920,2.7366,2634.1,2633.9,0.74593]
[1727701636110,0.37963,2634.0,2633.9,0.74593]
[1727701636516,2.7366,2634.1,2633.9,0.3663]
[1727701636712,2.7366,2634.1,2634.0,0.37963]
[1727701636713,3.11623,2634.1,2634.0,0.37963]
[1727701636917,0.37963,2634.0,2633.9,0.74593]
[1727701637115,0.37965,2633.9,2633.8,0.37964]
[1727701637321,2.74965,2633.9,2633.8,0.37964]
[1727701637823,2.37,2633.9,2633.8,0.37964]
[1727701639117,0.3666,2634.1,2634.0,0.37963]
[1727701639316,2.37,2634.3,2634.1,0.37961]
[1727701639317,1.179,2634.2,2634.1,0.37961]
[1727701639727,1.5586,2634.2,2634.1,0.37961]
[1727701640610,0.3796,2634.2,2634.1,0.37961]
[1727701641122,0.37961,2634.2,2634.1,0.3796]
[1727701643128,0.37961,2634.2,2633.9,0.37962]
[1727701643129,0.37964,2634.0,2633.9,0.37962]
[1727701643822,2.74962,2634.1,2634.0,0.37963]
[1727701645028,0.37964,2634.0,2633.9,0.37963]
[1727701645524,2.37,2634.1,2634.0,0.37963]
[1727701645713,4.31069,2634.3,2634.2,0.3796]
[1727701646227,3.13169,2634.3,2634.2,0.3796]
[1727701646721,3.13168,2634.3,2634.2,0.3796]
[1727701646923,5.5778,2634.5,2634.4,0.37957]
[1727701647119,2.37,2634.5,2634.4,0.37957]
[1727701649625,2.37,2634.7,2634.6,0.37954]
[1727701649822,2.74953,2634.7,2634.6,0.37954]
[1727701650329,2.37,2634.7,2634.6,0.37954]
[1727701651328,2.37,2635.0,2634.9,0.3795]
[1727701652031,2.37,2635.0,2634.7,0.7608]
[1727701652229,2.74948,2635.0,2634.9,0.3795]
[1727701652626,2.37,2635.0,2634.7,0.7608]
[1727701652927,0.37951,2634.9,2634.8,0.3795]
[1727701653728,2.74951,2634.9,2634.8,0.3795]
[1727701653933,0.37951,2634.8,2634.7,1.14031]
[1727701654129,0.77021,2634.8,2634.7,1.14031]
[1727701656033,0.77021,2634.8,2634.4,0.37956]
[1727701656034,0.37957,2634.5,2634.4,0.37956]
[1727701658227,1.33347,2634.6,2634.2,0.3704]
[1727701658427,2.37,2634.3,2634.1,0.3912]
[1727701658634,0.3796,2634.2,2634.1,0.7708]
[1727701659030,0.3796,2634.2,2634.1,4.5668]
[1727701659227,2.37,2634.3,2634.1,4.1872]
[1727701659429,0.37961,2634.2,2634.1,0.3796]
[1727701659733,2.37,2634.3,2633.9,0.7482]
[1727701659734,2.37,2634.3,2633.9,1.6973]
[1727701659922,2.37,2634.3,2634.2,0.3796]
[1727701659923,2.74958,2634.3,2634.2,0.3796]
[1727701666035,3.11568,2634.3,2634.2,0.3796]
[1727701667538,1.83568,2634.3,2634.2,0.3796]
[1727701670435,0.37963,2634.1,2634.0,0.3796]
[1727701670646,1.46963,2634.1,2634.0,0.3796]
[1727701673247,1.09,2634.1,2633.9,0.7482]
[1727701673544,0.76903,2634.0,2633.9,2.12191745]
[1727701674841,0.76903,2634.0,2633.9,1.12784]
[1727701675040,0.76903,2634.0,2633.9,0.37964]
[1727701675739,0.76903,2634.0,2633.8,3.2078]
[1727701675740,0.37964,2633.9,2633.8,0.37965]
[1727701675941,1.46964,2633.9,2633.8,0.37965]
[1727701676437,1.46964,2633.9,2633.6,1.37217745]
[1727701676438,1.09,2633.9,2633.6,1.37217745]
[1727701676640,1.09,2633.7,2633.6,1.75185745]
[1727701676852,1.46967,2633.7,2633.6,1.75185745]
[1727701677042,1.09,2633.7,2633.6,1.75185745]
[1727701677437,1.46967,2633.7,2633.6,1.75185745]
[1727701677752,1.09,2633.7,2633.6,1.75185745]
[1727701678148,1.09,2633.7,2633.6,0.75778]
[1727701679246,1.46967,2633.7,2633.6,0.75778]
[1727701679547,1.09,2633.7,2633.6,0.75778]
[1727701680043,1.46967,2633.7,2633.6,0.75778]
[1727701680641,1.09,2633.7,2633.6,0.75778]
[1727701680842,1.46967,2633.7,2633.6,0.75778]
[1727701681956,1.09,2633.7,2633.6,0.75778]
[1727701682757,1.46967,2633.7,2633.6,0.75778]
[1727701684353,1.46967,2633.7,2633.6,0.3781]
[1727701684550,1.46967,2633.7,2633.6,0.75778]
[1727701687560,1.46967,2633.7,2633.4,1.78167745]
[1727701687561,0.3797,2633.5,2633.4,1.78167745]
[1727701687856,1.4697,2633.5,2633.4,1.56001]
[1727701688354,1.09,2633.5,2633.4,1.56001]
[1727701691351,1.4697,2633.5,2633.4,1.56001]
[1727701692454,1.09,2633.5,2633.4,1.56001]
[1727701692662,1.4697,2633.5,2633.4,1.56001]
[1727701692857,1.09,2633.5,2633.4,1.56001]
[1727701693063,1.4697,2633.5,2633.4,1.56001]
[1727701693357,1.09,2633.5,2633.4,1.56001]
[1727701693563,1.4697,2633.5,2633.4,1.56001]
[1727701693757,1.4697,2633.5,2633.4,0.37971]
[1727701693948,0.37972,2633.4,2633.3,0.37971]
[1727701694153,0.37972,2633.4,2633.3,0.37973]
[1727701694154,1.46973,2633.4,2633.3,0.37973]
[1727701696668,1.46971,2633.4,2633.3,0.37973]
[1727701697467,0.37973,2633.3,2633.2,0.75143]
[1727701698166,1.46973,2633.4,2633.3,0.37973]
[1727701699676,1.09,2633.4,2633.3,0.37973]
[1727701701364,1.46971,2633.4,2633.3,0.37973]
[1727701702467,1.09,2633.4,2633.3,0.37973]
[1727701703271,2.313,2633.5,2633.3,0.37973]
[1727701703468,1.09,2633.5,2633.4,0.37971]
[1727701705571,1.09,2633.5,2633.2,4.57357745]
[1727701705572,1.09,2633.5,2633.2,0.10266539]
[1727701705771,1.09,2633.4,2633.3,0.37973]
[1727701706363,1.09,2633.4,2633.2,0.0490274]
[1727701706564,1.09,2633.4,2633.1,0.52659573]
[1727701706776,1.09,2633.4,2633.3,0.37973]
[1727701709589,1.46971,2633.4,2633.3,0.37973]
[1727701710774,1.46971,2633.4,2633.2,0.75980294]
[1727701711080,1.46971,2633.4,2633.3,0.37973]
[1727701712086,1.09,2633.4,2633.3,0.37973]
[1727701713185,3.58751,2633.5,2633.2,0.75980294]
[1727701713186,4.2978,2633.5,2633.4,0.37971]
[1727701713381,3.2078,2633.5,2633.4,0.37971]
[1727701715389,3.5875,2633.5,2633.4,0.37971]
[1727701715587,3.2078,2633.5,2633.4,0.37971]
[1727701717188,2.23389,2633.6,2633.2,1.70915294]
[1727701717388,1.14389,2633.6,2633.5,0.3797]
[1727701719995,2.23389,2633.6,2633.5,0.3797]
[1727701720190,1.8542,2633.6,2633.2,0.75980294]
[1727701720398,0.3797,2633.5,2633.4,0.3797]
[1727701720597,1.4697,2633.5,2633.4,0.3797]
[1727701720797,0.37972,2633.4,2633.3,0.37972]
[1727701721588,0.76712,2633.4,2633.3,0.37972]
[1727701721893,0.37973,2633.3,2633.2,0.37973]
[1727701722094,1.46973,2633.3,2633.2,0.37973]
[1727701722798,0.37977,2633.0,2632.9,1.17428]
[1727701723002,1.09,2633.1,2632.9,1.17428]
[1727701723201,1.46977,2633.1,2632.9,1.17428]
[1727701723499,0.37977,2633.0,2632.9,1.17428]
[1727701723794,1.46976,2633.1,2633.0,0.37977]
[1727701724198,1.46976,2633.1,2632.9,1.17427]
[1727701724899,1.46976,2633.1,2633.0,0.37977]
[1727701725501,1.46976,2633.1,2632.9,1.17428]
[1727701725898,1.09,2633.1,2633.0,0.37977]
[1727701726089,1.46976,2633.1,2633.0,0.37977]
[1727701726600,1.46977,2633.1,2632.7,0.7895]
[1727701726803,1.09,2632.8,2632.7,1.16931]
[1727701728106,5.0414,2633.2,2632.7,5.53744]
[1727701728307,1.8336,2633.2,2633.1,0.37976]
[1727701731507,2.21335,2633.2,2632.7,1.73904]
[1727701731807,1.09,2633.0,2632.9,0.37979]
[1727701734495,1.46977,2633.0,2632.9,0.37979]
[1727701734907,0.37979,2632.9,2632.8,0.37979]
[1727701735109,1.4676,2632.9,2632.8,0.37979]
[1727701737406,1.84739,2632.9,2632.8,0.37979]
[1727701737602,1.4676,2632.9,2632.8,0.37979]
[1727701737806,1.84739,2632.9,2632.8,0.37979]
[1727701738003,1.4676,2632.9,2632.8,0.37979]
[1727701739310,1.09,2632.9,2632.8,0.37979]
[1727701742301,1.46979,2632.9,2632.8,0.37979]
[1727701742915,1.09,2632.9,2632.8,0.37979]
[1727701743102,1.46979,2632.9,2632.8,0.37979]
[1727701744319,1.09,2632.9,2632.8,0.37979]
[1727701746915,3.6056,2633.1,2632.6,2.11617]
[1727701747121,3.6056,2633.1,2633.0,0.37977]
[1727701747122,4.2978,2633.1,2633.0,0.37977]
[1727701748016,4.2978,2633.1,2633.0,1.11507]
[1727701749218,3.2078,2633.4,2633.0,2.20507]
[1727701749419,3.2078,2633.7,2633.6,0.37968]
[1727701750312,1.4901,2633.9,2633.8,0.37966]
[1727701753922,3.2078,2634.2,2633.8,3.7968]
[1727701754119,3.5736,2634.2,2634.1,0.37961]
[1727701755017,3.5736,2634.2,2634.0,0.37962]
[1727701755614,3.5736,2634.2,2634.1,0.37961]
[1727701755922,3.5736,2634.2,2634.0,0.37962]
[1727701756125,1.09,2634.1,2634.0,0.37962]
[1727701756516,1.09,2634.1,2633.9,0.738]
[1727701756517,1.09,2634.1,2633.9,1.11763]
[1727701756719,1.09,2634.1,2634.0,0.37963]
[1727701769623,0.3658,2634.2,2634.1,0.37961]
[1727701771034,0.7454,2634.2,2634.1,0.37961]
[1727701772540,0.3658,2634.2,2634.1,0.37961]
[1727701772727,0.3658,2634.2,2634.1,0.77481]
[1727701772928,0.3658,2634.2,2634.1,1.86481]
[1727701773131,3.5769,2634.4,2634.3,0.37958]
[1727701773332,3.95647,2634.4,2634.3,0.37958]
[1727701776633,5.04647,2634.4,2634.3,0.37958]
[1727701780044,1.83867,2634.4,2634.3,0.37958]
[1727701780239,5.04647,2634.4,2634.3,0.37958]
[1727701783534,5.04647,2634.4,2634.2,0.37958]
[1727701783535,0.3796,2634.3,2634.2,0.37958]
[1727701791848,3.5874,2634.3,2634.2,0.37958]
[1727701792048,0.3796,2634.3,2634.2,0.37958]
[1727701792252,3.5874,2634.3,2634.2,0.37958]
[1727701794437,3.2078,2634.3,2634.2,0.37958]
[1727701794643,0.3869,2634.5,2634.4,0.37957]
[1727701795267,0.3869,2634.5,2634.4,0.75997]
[1727701796363,3.2078,2634.7,2634.4,0.3804]
[1727701796564,3.5797,2634.7,2634.6,0.37954]
[1727701796762,3.5797,2634.7,2634.6,1.46954]
[1727701796763,3.2078,2634.7,2634.6,1.46954]
[1727701797268,3.5797,2635.0,2634.9,0.3795]
[1727701797870,3.2078,2635.0,2634.9,0.3795]
[1727701798763,3.2078,2635.0,2634.9,1.4695]
[1727701798958,3.2078,2635.0,2634.9,0.3795]
[1727701799361,1.84235,2635.3,2635.1,0.37946]
[1727701799960,0.3719,2635.4,2635.2,0.37945]
[1727701800169,0.3719,2635.4,2635.2,0.7665]
[1727701800468,1.4619,2635.4,2635.2,0.7665]
[1727701800763,0.3719,2635.4,2635.3,0.37944]
[1727701800966,0.7702,2635.6,2635.3,0.37944]
[1727701801167,0.3908,2635.6,2635.2,0.7665]
[1727701801364,1.85669,2635.7,2635.4,0.37942]
[1727701801558,0.3794,2635.6,2635.4,0.37942]
[1727701802462,1.4773,2635.7,2635.4,0.37942]
[1727701802664,0.3794,2635.6,2635.3,0.3884]
[1727701802861,0.3794,2635.6,2635.3,0.76783]
[1727701804068,0.3794,2635.6,2635.3,0.3884]
[1727701804264,1.4773,2635.7,2635.3,0.3884]
[1727701804466,0.37941,2635.5,2635.3,0.76783]
[1727701804864,1.09,2635.4,2635.3,0.76783]
[1727701806073,1.09,2635.4,2635.3,0.76784]
[1727701806970,1.09,2635.4,2635.3,0.3884]
[1727701807165,0.37945,2635.3,2635.2,0.37945]
[1727701807471,0.3744,2635.3,2635.2,0.37945]
[1727701807674,0.75384,2635.3,2635.2,0.37945]
[1727701808379,0.37946,2635.2,2635.0,0.37948]
[1727701808669,1.46947,2635.1,2635.0,0.37948]
[1727701809070,1.09,2635.1,2634.9,0.37949]
[1727701809371,0.37948,2635.0,2634.9,0.37949]
[1727701810572,1.46948,2635.1,2634.9,0.37949]
[1727701810873,0.37948,2635.0,2634.9,0.37949]
[1727701811465,1.09,2635.1,2634.8,1.1633]
[1727701811770,0.7695,2634.9,2634.8,0.37951]
[1727701811962,0.7695,2634.9,2634.6,0.7868]
[1727701812162,0.37951,2634.8,2634.7,0.37952]
[1727701812473,0.3964,2634.8,2634.7,0.37952]
[1727701812669,3.6042,2634.8,2634.7,0.37952]
[1727701813268,3.98371,2634.8,2634.7,0.37952]
[1727701813580,3.6042,2634.8,2634.7,0.37952]
[1727701813868,3.98371,2634.8,2634.7,0.37952]
[1727701814266,3.6042,2634.8,2634.7,0.37952]
[1727701818776,3.98371,2634.8,2634.7,0.37952]
[1727701819075,3.6042,2634.8,2634.7,0.37952]
[1727701819776,3.98371,2634.8,2634.7,0.37952]
[1727701820877,3.6042,2634.8,2634.7,0.37952]
[1727701821383,3.2078,2634.8,2634.7,0.37952]
[1727701821583,3.2078,2635.2,2635.1,0.37947]
[1727701821978,1.5412,2635.6,2635.5,0.37941]
[1727701822179,0.7725,2635.6,2635.5,0.37941]
[1727701822679,1.1519,2635.6,2635.5,0.37941]
[1727701823582,3.58719,2635.7,2635.6,0.3794]
[1727701823783,3.2078,2635.7,2635.6,0.3794]
[1727701824282,3.2078,2635.7,2635.6,5.2638]
[1727701826777,0.4019,2636.0,2635.6,4.8844]
[1727701826972,0.4019,2636.0,2635.8,0.37935]
[1727701827178,0.4019,2636.0,2635.9,0.37935]
[1727701827389,3.606,2636.3,2635.8,1.09]
[1727701827685,0.3982,2636.3,2636.2,0.37931]
[1727701828383,0.3836,2636.4,2635.9,2.37]
[1727701828880,0.76289,2636.4,2636.2,0.3793]
[1727701829286,0.75356,2636.6,2636.4,0.37928]
[1727701829477,1.13716,2636.6,2636.4,0.37928]
[1727701829675,0.7579,2636.6,2635.8,7.7425]
[1727701829979,0.7579,2636.6,2636.5,0.37927]
[1727701829980,0.3836,2636.6,2636.5,0.37927]
[1727701830984,0.37925,2636.7,2636.5,0.37927]
[1727701831780,0.3757,2636.9,2636.5,0.37927]
[1727701832081,0.37925,2636.7,2636.5,0.37927]
[1727701832281,0.3757,2636.9,2636.5,0.37927]
[1727701832485,0.37925,2636.6,2636.3,0.7645]
[1727701832680,0.37925,2636.6,2636.5,0.37927]
[1727701833380,0.37925,2636.6,2636.5,0.37926]
[1727701835992,4.15588,2636.8,2636.3,1.1639]
[1727701836189,3.58703,2636.8,2636.7,0.37924]
[1727701836390,3.2078,2636.8,2636.7,0.37924]
[1727701836588,3.58702,2636.8,2636.7,0.37924]
[1727701836789,3.2078,2636.8,2636.7,0.37924]
[1727701837191,3.2078,2636.8,2636.7,4.17204]
[1727701837889,3.2078,2636.8,2636.7,4.55364]
[1727701838087,1.34594,2637.2,2636.9,0.37921]
[1727701838088,0.3792,2637.0,2636.9,0.37921]
[1727701842101,4.55374,2637.2,2636.8,0.3672]
[1727701842303,4.55374,2637.2,2637.0,0.37919]
[1727701842304,0.37919,2637.1,2637.0,0.37919]
[1727701843506,0.37921,2637.0,2636.9,0.3792]
[1727701844196,0.37919,2637.1,2637.0,0.37918]
[1727701856201,3.6058,2637.2,2636.8,2.79376]
[1727701856411,3.98498,2637.2,2637.1,0.37918]
[1727701862517,3.98498,2637.2,2636.8,1.70376]
[1727701862812,3.98498,2637.2,2636.8,1.4572]
[1727701863018,0.37921,2637.0,2636.9,0.3792]
[1727701863316,0.37921,2637.0,2636.5,4.15597]
[1727701863317,0.37924,2636.8,2636.5,3.6127]
[1727701863511,0.37928,2636.6,2636.5,0.37925]
[1727701864219,0.37927,2636.5,2636.4,1.46927]
[1727701864415,0.3793,2636.4,2636.3,0.3793]
[1727701864612,0.3793,2636.4,2636.3,1.4693]
[1727701864810,3.2078,2636.6,2636.3,2.03824]
[1727701865018,0.37926,2636.6,2636.5,1.46925]
[1727701865225,1.14335,2636.7,2636.6,0.37925]
[1727701865613,4.93615,2636.7,2636.6,0.37925]
[1727701865812,1.14334,2636.7,2636.6,0.37925]
[1727701866014,0.3896,2636.9,2636.5,1.09]
[1727701866332,0.3968,2637.0,2636.9,0.37921]
[1727701866714,0.77599,2637.0,2636.9,0.37921]
[1727701868719,0.3968,2637.0,2636.9,0.37921]
[1727701869517,0.77599,2637.0,2636.9,0.37921]
[1727701872314,0.77599,2637.0,2636.8,1.09]
[1727701872315,0.3968,2637.0,2636.8,1.09]
[1727701872514,0.37922,2636.8,2636.7,0.366]
[1727701872824,0.37922,2636.9,2636.8,0.37922]
[1727701873523,0.94805,2636.9,2636.5,0.98780679]
[1727701873714,0.37925,2636.7,2636.6,0.37924]
[1727701874229,3.58705,2636.7,2636.6,0.37924]
[1727701874725,0.37927,2636.6,2636.5,0.37926]
[1727701875027,0.77077,2636.6,2636.5,0.37926]
[1727701875225,1.14637,2636.6,2636.5,0.37926]
[1727701875521,0.7671,2636.6,2636.5,0.37926]
[1727701875726,0.7671,2636.6,2636.5,0.77316]
[1727701877426,1.14635,2636.6,2636.5,0.77316]
[1727701877614,1.14635,2636.6,2636.5,0.37926]
[1727701878621,0.7671,2636.6,2636.3,1.36709679]
[1727701878936,0.37928,2636.4,2636.3,0.37929]
[1727701879229,0.37928,2636.4,2636.3,1.36709679]
[1727701879526,0.37928,2636.4,2636.3,2.78498645]
[1727701881531,0.37928,2636.4,2636.3,2.78489607]
[1727701882532,0.37928,2636.4,2636.3,2.78472733]
[1727701883030,0.37928,2636.4,2636.3,2.7847179]
[1727701883529,0.37928,2636.4,2636.3,1.36709679]
[1727701883724,0.37928,2636.4,2636.3,0.37929]
[1727701886030,1.71527,2636.6,2636.2,2.07780679]
[1727701886225,0.37928,2636.5,2636.4,1.46927]
[1727701888332,0.7671,2636.6,2636.2,0.98780679]
[1727701888637,0.3793,2636.3,2636.2,1.4693]
[1727701889730,1.71525,2636.6,2636.2,1.09]
[1727701889931,0.7671,2636.6,2636.5,0.37927]
[1727701890328,1.14635,2636.6,2636.5,0.74447]
[1727701890835,0.7671,2636.6,2636.5,0.74447]
[1727701891133,1.14635,2636.6,2636.5,0.74447]
[1727701892438,1.14635,2636.6,2636.5,0.37927]
[1727701893135,0.7671,2636.6,2636.4,0.98780679]
[1727701893339,0.37927,2636.5,2636.4,0.37928]
[1727701894834,0.7671,2636.6,2636.3,2.07780679]
[1727701895037,0.37928,2636.4,2636.3,2.45709679]
[1727701895536,0.37928,2636.4,2636.3,2.07780679]
[1727701895731,0.3793,2636.3,2636.2,0.98780679]
[1727701895931,0.37931,2636.2,2636.1,1.36712679]
[1727701896134,1.15661,2636.2,2636.1,0.37932]
[1727701896347,0.37932,2636.1,2636.0,0.98780679]
[1727701896535,0.37934,2636.0,2635.9,1.36714679]
[1727701896739,0.4018,2636.1,2636.0,0.37934]
[1727701896740,0.78114,2636.1,2636.0,0.37934]
[1727701897136,0.78114,2636.1,2635.9,0.37934]
[1727701897137,0.37935,2636.0,2635.9,0.37934]
[1727701900646,0.387,2636.2,2636.1,0.37932]
[1727701901450,0.387,2636.2,2636.1,0.75912]
[1727701906548,0.76631,2636.2,2636.1,0.75912]
[1727701910245,0.76631,2636.2,2636.1,0.37932]
[1727701910447,1.14001,2636.2,2636.1,0.37932]
[1727701910854,0.7607,2636.2,2636.1,0.37932]
[1727701912254,1.14001,2636.2,2636.1,0.37932]
[1727701912437,0.7607,2636.2,2636.1,0.37932]
[1727701912852,1.14001,2636.2,2636.1,0.37932]
[1727701913045,0.7607,2636.2,2636.1,0.37932]
[1727701914446,0.7607,2636.2,2636.1,1.36712679]
[1727701914842,0.387,2636.2,2636.1,1.36712679]
[1727701915949,0.387,2636.2,2636.1,1.76392679]
[1727701917457,3.58711,2636.3,2636.2,0.37931]
[1727701917645,3.58711,2636.3,2636.2,0.76511]
[1727701918250,0.37931,2636.3,2636.2,0.76511]
[1727701918450,3.58711,2636.3,2636.2,0.76511]
[1727701919352,0.37931,2636.3,2636.2,0.76511]
[1727701919551,3.58711,2636.3,2636.2,1.75291679]
[1727701920452,3.2078,2636.3,2636.2,1.75291679]
[1727701920648,0.3793,2636.4,2636.3,0.37928]
[1727701920850,0.3958,2636.5,2636.4,0.37928]
[1727701921158,0.75036,2636.6,2636.5,0.37927]
[1727701921159,0.3711,2636.6,2636.5,0.37927]
[1727701921357,3.2078,2636.7,2636.3,3.02604679]
[1727701921358,3.2078,2636.7,2636.6,0.37925]
[1727701921561,3.2078,2636.7,2636.6,1.46925]
[1727701921763,3.2078,2636.7,2636.6,0.37925]
[1727701921960,4.75635,2636.7,2636.6,0.37925]
[1727701922169,1.54855,2636.7,2636.4,0.98780679]
[1727701922357,1.1693,2636.7,2636.6,0.37925]
[1727701923958,1.54854,2636.7,2636.6,0.37925]
[1727701924262,1.1693,2636.7,2636.6,0.37925]
[1727701926069,0.7739,2636.7,2636.6,0.37925]
[1727701926471,0.7739,2636.7,2636.6,1.56825]
[1727701926672,0.3967,2636.7,2636.6,1.56825]
[1727701930274,0.3939,2637.0,2636.9,0.37921]
[1727701930470,0.7687,2637.0,2636.9,0.37921]
[1727701931759,1.14789,2637.0,2636.9,0.37921]
[1727701931971,0.7687,2637.0,2636.9,0.37921]
[1727701932472,1.14789,2637.0,2636.9,0.37921]
[1727701932673,0.7687,2637.0,2636.6,2.17680679]
[1727701932867,0.37925,2636.7,2636.6,0.37924]
[1727701933265,1.11915,2636.7,2636.6,0.37924]
[1727701933976,0.7399,2636.7,2636.6,0.37924]
[1727701934468,1.11914,2636.7,2636.6,0.37924]
[1727701934674,0.7399,2636.7,2636.6,0.37924]
[1727701934877,1.11914,2636.7,2636.6,0.37924]
[1727701935073,0.7399,2636.7,2636.6,0.37924]
[1727701936881,1.11914,2636.7,2636.6,0.37924]
[1727701937173,0.7399,2636.7,2636.6,0.37924]
[1727701937577,1.11914,2636.7,2636.6,0.37924]
[1727701937965,0.7399,2636.7,2636.6,0.37924]
[1727701938578,1.11914,2636.7,2636.6,0.37924]
[1727701938981,0.7399,2636.7,2636.6,0.37924]
[1727701939183,1.11914,2636.7,2636.6,0.37924]
[1727701939680,0.7399,2636.7,2636.6,0.37924]
[1727701940379,1.11914,2636.7,2636.6,0.37924]
[1727701940974,0.37928,2636.5,2636.4,0.37927]
[1727701942278,0.37929,2636.4,2636.3,0.37929]
[1727701942479,0.37929,2636.4,2636.3,0.37928]
[1727701944477,0.76259,2636.4,2636.3,0.37928]
[1727701945683,0.76258,2636.4,2636.3,0.37928]
[1727701948977,0.3833,2636.4,2636.3,0.37928]
[1727701949173,0.76258,2636.4,2636.3,0.37928]
[1727701949482,0.76258,2636.4,2636.3,1.46928]
[1727701951988,3.2078,2636.5,2636.3,1.09]
[1727701952181,3.2078,2636.5,2636.4,1.14828]
[1727701952491,3.2078,2636.5,2636.4,3.22608679]
[1727701954499,4.37595,2636.6,2636.5,0.37927]
[1727701954693,1.16815,2636.6,2636.5,0.37927]
[1727701956088,0.7889,2636.6,2636.5,0.37927]
[1727701956289,1.09,2636.8,2636.4,1.75680679]
[1727701956595,0.37925,2636.7,2636.6,0.37923]
[1727701966201,1.70053,2636.9,2636.5,0.4038]
[1727701966400,0.74735,2636.6,2636.5,0.78307]
[1727701971102,0.3681,2636.6,2636.5,0.78307]
[1727701971304,0.74735,2636.6,2636.5,0.78307]
[1727701971704,0.37925,2636.6,2636.5,0.78307]
[1727701975418,0.74483,2636.8,2636.7,0.37924]
[1727701976503,0.37918,2637.2,2637.1,0.37917]
[1727701976705,3.2078,2637.3,2637.2,0.37917]
[1727701976905,3.2078,2637.3,2637.2,1.16707]
[1727701977109,3.2078,2637.3,2637.2,1.54777]
[1727701978615,0.7581,2637.6,2637.2,1.1686]
[1727701978808,1.1428,2637.6,2637.5,0.37912]
[1727701979010,1.14871,2637.6,2637.5,0.37912]
[1727701979214,0.3847,2637.6,2637.5,0.37912]
[1727701979408,0.76381,2637.6,2637.5,0.37912]
[1727701979912,0.37912,2637.5,2637.4,1.46913]
[1727701980312,0.3847,2637.6,2637.3,0.37915]